[Event "Titled Tuesday Blitz January 03 Late 2023"]
[White "Chigaev, Maksim"]
[Black "Kravtsiv, Martyn"]
[WhiteFideId "4108116"]
[BlackFideId "14113147"]
[WhiteElo "2628"]
[BlackElo "2598"]
[Result "1-0"]
[Round "08"]
[TimeControl "180+2"]
[Date "2023.01.03"]
[WhiteClock "0:00:06"]
[BlackClock "0:00:02"]

1. e4 {[%clk 0:03:00]}  e5 {[%clk 0:02:59]} 2. Bc4 {[%clk 0:03:01]}  Nf6 {[%clk 0:02:57]} 3. d3 {[%clk 0:03:01]}  Nc6 {[%clk 0:02:56]} 4. Nf3 {[%clk 0:02:59]}  Bc5 {[%clk 0:02:56]} 5. c3 {[%clk 0:03:00]}  O-O {[%clk 0:02:55]} 6. Bg5 {[%clk 0:02:54]}  h6 {[%clk 0:02:54]} 7. Bh4 {[%clk 0:02:55]}  Be7 {[%clk 0:02:54]} 8. Nbd2 {[%clk 0:02:53]}  d6 {[%clk 0:02:53]} 9. a4 {[%clk 0:02:52]}  Kh8 {[%clk 0:02:52]} 10. Qe2 {[%clk 0:02:44]}  Nh7 {[%clk 0:02:51]} 11. Bg3 {[%clk 0:02:41]}  f5 {[%clk 0:02:49]} 12. exf5 {[%clk 0:02:40]}  Bxf5 {[%clk 0:02:49]} 13. O-O {[%clk 0:02:39]}  Ng5 {[%clk 0:02:37]} 14. Nxg5 {[%clk 0:02:27]}  Bxg5 {[%clk 0:02:37]} 15. Bd5 {[%clk 0:02:28]}  Ne7 {[%clk 0:02:34]} 16. Be4 {[%clk 0:02:23]}  Bxd2 {[%clk 0:02:31]} 17. Qxd2 {[%clk 0:02:23]}  Bxe4 {[%clk 0:02:29]} 18. dxe4 {[%clk 0:02:24]}  a5 {[%clk 0:02:25]} 19. f4 {[%clk 0:02:13]}  exf4 {[%clk 0:02:22]} 20. Bxf4 {[%clk 0:02:14]}  Kh7 {[%clk 0:01:29]} 21. e5 {[%clk 0:01:54]}  Ng6 {[%clk 0:01:29]} 22. exd6 {[%clk 0:01:52]}  Nxf4 {[%clk 0:01:23]} 23. Rxf4 {[%clk 0:01:53]}  Qxd6 {[%clk 0:01:23]} 24. Qxd6 {[%clk 0:01:48]}  cxd6 {[%clk 0:01:24]} 25. Rxf8 {[%clk 0:01:48]}  Rxf8 {[%clk 0:01:23]} 26. Rd1 {[%clk 0:01:49]}  Rd8 {[%clk 0:01:22]} 27. Rd5 {[%clk 0:01:47]}  b6 {[%clk 0:01:22]} 28. Kf2 {[%clk 0:01:46]}  Kg6 {[%clk 0:01:22]} 29. Ke3 {[%clk 0:01:47]}  Kf6 {[%clk 0:01:22]} 30. Rb5 {[%clk 0:01:47]}  Rb8 {[%clk 0:01:21]} 31. Kd4 {[%clk 0:01:47]}  Ke6 {[%clk 0:01:21]} 32. h4 {[%clk 0:01:40]}  g6 {[%clk 0:01:16]} 33. g4 {[%clk 0:01:34]}  Kd7 {[%clk 0:01:12]} 34. Kd5 {[%clk 0:01:00]}  Kc7 {[%clk 0:00:56]} 35. Ke6 {[%clk 0:00:35]}  Re8+ {[%clk 0:00:55]} 36. Kf6 {[%clk 0:00:30]}  Re4 {[%clk 0:00:55]} 37. h5 {[%clk 0:00:30]}  gxh5 {[%clk 0:00:54]} 38. gxh5 {[%clk 0:00:31]}  Rxa4 {[%clk 0:00:53]} 39. Kg6 {[%clk 0:00:31]}  Kc6 {[%clk 0:00:45]} 40. Rf5 {[%clk 0:00:20]}  Ra2 {[%clk 0:00:44]} 41. b4 {[%clk 0:00:10]}  a4 {[%clk 0:00:40]} 42. b5+ {[%clk 0:00:10]}  Kd7 {[%clk 0:00:38]} 43. Kxh6 {[%clk 0:00:11]}  Rg2 {[%clk 0:00:32]} 44. Rf7+ {[%clk 0:00:08]}  Ke6 {[%clk 0:00:32]} 45. Ra7 {[%clk 0:00:09]}  Rg4 {[%clk 0:00:32]} 46. Ra6 {[%clk 0:00:07]}  Kd5 {[%clk 0:00:27]} 47. Rxb6 {[%clk 0:00:07]}  Kc5 {[%clk 0:00:28]} 48. Rb8 {[%clk 0:00:07]}  a3 {[%clk 0:00:26]} 49. b6 {[%clk 0:00:08]}  Ra4 {[%clk 0:00:25]} 50. b7 {[%clk 0:00:05]}  a2 {[%clk 0:00:10]} 51. Rc8+ {[%clk 0:00:06]}  Kd5 {[%clk 0:00:10]} 52. b8=Q {[%clk 0:00:06]}  a1=Q {[%clk 0:00:10]} 53. Qb5+ {[%clk 0:00:06]}  Ke4 {[%clk 0:00:08]} 54. Re8+ {[%clk 0:00:07]}  Kf3 {[%clk 0:00:08]} 55. Qe2+ {[%clk 0:00:07]}  Kg3 {[%clk 0:00:05]} 56. Rg8+ {[%clk 0:00:07]}  Kf4 {[%clk 0:00:02]} 57. Rf8+ {[%clk 0:00:05]}  Kg3 {[%clk 0:00:01]} 58. Qf3+ {[%clk 0:00:05]}  Kh2 {[%clk 0:00:01]} 59. Qf2+ {[%clk 0:00:06]}  Kh1 {[%clk 0:00:01]} 60. Qf3+ {[%clk 0:00:04]}  Kh2 {[%clk 0:00:02]} 61. Qe2+ {[%clk 0:00:05]}  Kh1 {[%clk 0:00:02]} 62. Rf1+ {[%clk 0:00:06]} 1-0


[Site "https://www.chess.com"]

[Event "Titled Tuesday Blitz January 03 Late 2023"]
[White "Nasuta, Grzegorz"]
[Black "Deac, Bogdan-Daniel"]
[WhiteFideId "1141686"]
[BlackFideId "1226380"]
[WhiteElo "2552"]
[BlackElo "2700"]
[Result "0-1"]
[Round "08"]
[TimeControl "180+2"]
[Date "2023.01.03"]
[WhiteClock "0:00:35"]
[BlackClock "0:02:30"]

1. e4 {[%clk 0:02:55]}  c5 {[%clk 0:03:00]} 2. Nf3 {[%clk 0:02:55]}  d6 {[%clk 0:03:01]} 3. d4 {[%clk 0:02:55]}  cxd4 {[%clk 0:03:02]} 4. Nxd4 {[%clk 0:02:56]}  Nf6 {[%clk 0:03:02]} 5. Nc3 {[%clk 0:02:56]}  e5 {[%clk 0:03:03]} 6. Bb5+ {[%clk 0:02:55]}  Nbd7 {[%clk 0:03:03]} 7. Nf5 {[%clk 0:02:54]}  a6 {[%clk 0:03:03]} 8. Bxd7+ {[%clk 0:02:43]}  Qxd7 {[%clk 0:03:04]} 9. Bg5 {[%clk 0:02:40]}  Nxe4 {[%clk 0:03:03]} 10. Nxg7+ {[%clk 0:02:41]}  Bxg7 {[%clk 0:03:04]} 11. Nxe4 {[%clk 0:02:41]}  O-O {[%clk 0:03:05]} 12. Qxd6 {[%clk 0:02:21]}  f6 {[%clk 0:03:04]} 13. Be3 {[%clk 0:02:03]}  Qg4 {[%clk 0:03:01]} 14. f3 {[%clk 0:02:02]}  Qxg2 {[%clk 0:02:54]} 15. O-O-O {[%clk 0:02:02]}  Qxf3 {[%clk 0:02:54]} 16. Qd5+ {[%clk 0:01:48]}  Kh8 {[%clk 0:02:51]} 17. Bc5 {[%clk 0:01:47]}  Bh6+ {[%clk 0:02:48]} 18. Kb1 {[%clk 0:01:46]}  Bf5 {[%clk 0:02:48]} 19. Nxf6 {[%clk 0:00:37]}  Rxf6 {[%clk 0:02:31]} 20. Qxf3 {[%clk 0:00:37]}  Bxc2+ {[%clk 0:02:31]} 21. Kxc2 {[%clk 0:00:38]}  Rxf3 {[%clk 0:02:31]} 22. Rhe1 {[%clk 0:00:38]}  Rc8 {[%clk 0:02:30]} 23. Rxe5 {[%clk 0:00:35]}  b6 {[%clk 0:02:30]} 0-1


[Site "https://www.chess.com"]

[Event "Titled Tuesday Blitz January 03 Late 2023"]
[White "Bortnyk, Olexandr"]
[Black "Riehle, Marco"]
[WhiteFideId "14120828"]
[BlackFideId "12904392"]
[WhiteElo "2605"]
[BlackElo "2368"]
[Result "0-1"]
[Round "08"]
[TimeControl "180+2"]
[Date "2023.01.03"]
[WhiteClock "0:00:01"]
[BlackClock "0:00:11"]

1. e4 {[%clk 0:03:00]}  e5 {[%clk 0:02:57]} 2. Bc4 {[%clk 0:03:00]}  Nf6 {[%clk 0:02:57]} 3. d3 {[%clk 0:02:59]}  c6 {[%clk 0:02:56]} 4. Nf3 {[%clk 0:02:59]}  d5 {[%clk 0:02:57]} 5. Bb3 {[%clk 0:03:00]}  Bd6 {[%clk 0:02:56]} 6. Nc3 {[%clk 0:02:59]}  Be6 {[%clk 0:02:54]} 7. Ng5 {[%clk 0:02:59]}  O-O {[%clk 0:02:54]} 8. Qf3 {[%clk 0:02:56]}  h6 {[%clk 0:02:47]} 9. Nxe6 {[%clk 0:02:55]}  fxe6 {[%clk 0:02:48]} 10. Qh3 {[%clk 0:02:52]}  Qe7 {[%clk 0:02:45]} 11. O-O {[%clk 0:02:50]}  Nbd7 {[%clk 0:02:44]} 12. Bd2 {[%clk 0:02:35]}  Nc5 {[%clk 0:02:43]} 13. Rae1 {[%clk 0:02:35]}  a5 {[%clk 0:02:39]} 14. a3 {[%clk 0:02:35]}  Nxb3 {[%clk 0:02:38]} 15. cxb3 {[%clk 0:02:36]}  b5 {[%clk 0:02:29]} 16. Kh1 {[%clk 0:02:36]}  Bc5 {[%clk 0:02:20]} 17. exd5 {[%clk 0:02:29]}  exd5 {[%clk 0:02:18]} 18. f4 {[%clk 0:02:05]}  e4 {[%clk 0:02:16]} 19. dxe4 {[%clk 0:02:05]}  dxe4 {[%clk 0:02:12]} 20. f5 {[%clk 0:01:48]}  Rad8 {[%clk 0:02:05]} 21. Bf4 {[%clk 0:01:46]}  Rfe8 {[%clk 0:01:53]} 22. Ne2 {[%clk 0:01:39]}  Rd3 {[%clk 0:01:49]} 23. Qh4 {[%clk 0:01:36]}  Nd5 {[%clk 0:01:45]} 24. Qh5 {[%clk 0:01:32]}  Rxb3 {[%clk 0:01:37]} 25. Bxh6 {[%clk 0:01:31]}  gxh6 {[%clk 0:01:35]} 26. Qg6+ {[%clk 0:01:19]}  Kh8 {[%clk 0:01:22]} 27. f6 {[%clk 0:01:18]}  Nxf6 {[%clk 0:01:13]} 28. Rxf6 {[%clk 0:01:12]}  Rg8 {[%clk 0:01:10]} 29. Qxh6+ {[%clk 0:00:54]}  Qh7 {[%clk 0:01:10]} 30. Rxc6 {[%clk 0:00:43]}  Qxh6 {[%clk 0:00:55]} 31. Rxh6+ {[%clk 0:00:44]}  Kg7 {[%clk 0:00:55]} 32. Rh5 {[%clk 0:00:45]}  Bf2 {[%clk 0:00:53]} 33. Rd1 {[%clk 0:00:44]}  Rxb2 {[%clk 0:00:50]} 34. Rg5+ {[%clk 0:00:44]}  Kf7 {[%clk 0:00:50]} 35. Rf5+ {[%clk 0:00:45]}  Ke7 {[%clk 0:00:44]} 36. Re5+ {[%clk 0:00:26]}  Kf6 {[%clk 0:00:40]} 37. Rxe4 {[%clk 0:00:27]}  Ba7 {[%clk 0:00:40]} 38. Rf1+ {[%clk 0:00:26]}  Kg5 {[%clk 0:00:38]} 39. h4+ {[%clk 0:00:23]}  Kh6 {[%clk 0:00:38]} 40. g4 {[%clk 0:00:18]}  b4 {[%clk 0:00:31]} 41. Rf7 {[%clk 0:00:13]}  Bf2 {[%clk 0:00:14]} 42. Re6+ {[%clk 0:00:02]}  Rg6 {[%clk 0:00:13]} 43. g5+ {[%clk 0:00:03]}  Kh5 {[%clk 0:00:13]} 44. Nf4+ {[%clk 0:00:04]}  Kg4 {[%clk 0:00:13]} 45. Nxg6 {[%clk 0:00:05]}  Kg3 {[%clk 0:00:12]} 46. Rf3+ {[%clk 0:00:01]}  Kxf3 {[%clk 0:00:12]} 47. Kh2 {[%clk 0:00:01]}  Bg3+ {[%clk 0:00:11]} 48. Kg1 {[%clk 0:00:01]}  Rb1+ {[%clk 0:00:11]} 0-1


[Site "https://www.chess.com"]

[Event "Titled Tuesday Blitz January 03 Late 2023"]
[White "Paravyan, David"]
[Black "Fernandez Guillen, Ernesto J."]
[WhiteFideId "4194985"]
[BlackFideId "3512428"]
[WhiteElo "2601"]
[BlackElo "2477"]
[Result "1/2-1/2"]
[Round "08"]
[TimeControl "180+2"]
[Date "2023.01.03"]
[WhiteClock "0:00:04"]
[BlackClock "0:00:03"]

1. e4 {[%clk 0:03:00]}  e5 {[%clk 0:02:53]} 2. Nf3 {[%clk 0:03:01]}  Nc6 {[%clk 0:02:52]} 3. Nc3 {[%clk 0:03:02]}  g6 {[%clk 0:02:52]} 4. d4 {[%clk 0:03:02]}  exd4 {[%clk 0:02:53]} 5. Nd5 {[%clk 0:03:02]}  Bg7 {[%clk 0:02:53]} 6. Bg5 {[%clk 0:03:00]}  f6 {[%clk 0:02:54]} 7. Bf4 {[%clk 0:03:00]}  d6 {[%clk 0:02:54]} 8. Nxd4 {[%clk 0:02:57]}  Nge7 {[%clk 0:02:55]} 9. Nb5 {[%clk 0:02:25]}  Nxd5 {[%clk 0:02:52]} 10. exd5 {[%clk 0:02:25]}  Ne5 {[%clk 0:02:51]} 11. Be2 {[%clk 0:02:24]}  O-O {[%clk 0:02:51]} 12. O-O {[%clk 0:02:24]}  g5 {[%clk 0:02:44]} 13. Bxe5 {[%clk 0:02:21]}  fxe5 {[%clk 0:02:45]} 14. Bg4 {[%clk 0:02:21]}  Rf4 {[%clk 0:02:38]} 15. Bxc8 {[%clk 0:02:21]}  Qxc8 {[%clk 0:02:38]} 16. Qe2 {[%clk 0:02:00]}  Qd7 {[%clk 0:02:35]} 17. c4 {[%clk 0:01:47]}  g4 {[%clk 0:02:12]} 18. Rae1 {[%clk 0:01:34]}  h5 {[%clk 0:02:12]} 19. Nc3 {[%clk 0:01:32]}  Raf8 {[%clk 0:02:11]} 20. Ne4 {[%clk 0:01:31]}  Qf5 {[%clk 0:02:11]} 21. f3 {[%clk 0:01:10]}  gxf3 {[%clk 0:01:57]} 22. Rxf3 {[%clk 0:01:10]}  Rxf3 {[%clk 0:01:56]} 23. Qxf3 {[%clk 0:01:11]}  Qxf3 {[%clk 0:01:57]} 24. gxf3 {[%clk 0:01:12]}  Rxf3 {[%clk 0:01:57]} 25. Kg2 {[%clk 0:01:09]}  Rf4 {[%clk 0:01:57]} 26. b3 {[%clk 0:01:07]}  Bf8 {[%clk 0:01:41]} 27. h3 {[%clk 0:01:05]}  Be7 {[%clk 0:01:40]} 28. Re2 {[%clk 0:01:03]}  Kh7 {[%clk 0:01:39]} 29. Nc3 {[%clk 0:00:32]}  a6 {[%clk 0:01:33]} 30. Re4 {[%clk 0:00:32]}  Rf8 {[%clk 0:01:30]} 31. c5 {[%clk 0:00:29]}  Kg6 {[%clk 0:01:28]} 32. Rb4 {[%clk 0:00:28]}  Rb8 {[%clk 0:01:20]} 33. c6 {[%clk 0:00:28]}  b6 {[%clk 0:01:15]} 34. Ra4 {[%clk 0:00:28]}  a5 {[%clk 0:01:02]} 35. Nb5 {[%clk 0:00:28]}  Rc8 {[%clk 0:01:02]} 36. Kf3 {[%clk 0:00:19]}  Kf5 {[%clk 0:01:02]} 37. a3 {[%clk 0:00:17]}  Bg5 {[%clk 0:00:56]} 38. Ke2 {[%clk 0:00:16]}  e4 {[%clk 0:00:39]} 39. Nc3 {[%clk 0:00:06]}  Re8 {[%clk 0:00:38]} 40. b4 {[%clk 0:00:07]}  axb4 {[%clk 0:00:36]} 41. axb4 {[%clk 0:00:08]}  Bf6 {[%clk 0:00:36]} 42. Nb5 {[%clk 0:00:08]}  Rc8 {[%clk 0:00:30]} 43. Ra7 {[%clk 0:00:07]}  Bd8 {[%clk 0:00:30]} 44. Ke3 {[%clk 0:00:02]}  Ke5 {[%clk 0:00:30]} 45. Nc3 {[%clk 0:00:02]}  Bg5+ {[%clk 0:00:31]} 46. Ke2 {[%clk 0:00:02]}  Kd4 {[%clk 0:00:31]} 47. Nb5+ {[%clk 0:00:02]}  Kxd5 {[%clk 0:00:31]} 48. Nxc7+ {[%clk 0:00:03]}  Kxc6 {[%clk 0:00:20]} 49. b5+ {[%clk 0:00:03]}  Kd7 {[%clk 0:00:21]} 50. Nd5+ {[%clk 0:00:02]}  Ke6 {[%clk 0:00:21]} 51. Nxb6 {[%clk 0:00:02]}  Rb8 {[%clk 0:00:22]} 52. Ra6 {[%clk 0:00:01]}  d5 {[%clk 0:00:13]} 53. Nc4+ {[%clk 0:00:01]}  Kf5 {[%clk 0:00:13]} 54. Nd6+ {[%clk 0:00:01]}  Kf4 {[%clk 0:00:14]} 55. b6 {[%clk 0:00:02]}  d4 {[%clk 0:00:13]} 56. b7 {[%clk 0:00:02]}  d3+ {[%clk 0:00:14]} 57. Kd1 {[%clk 0:00:02]}  e3 {[%clk 0:00:11]} 58. Ra8 {[%clk 0:00:02]}  e2+ {[%clk 0:00:11]} 59. Kd2 {[%clk 0:00:02]}  Ke5+ {[%clk 0:00:09]} 60. Kxd3 {[%clk 0:00:01]}  e1=Q {[%clk 0:00:09]} 61. Rxb8 {[%clk 0:00:02]}  Qd2+ {[%clk 0:00:08]} 62. Kc4 {[%clk 0:00:03]}  Qd4+ {[%clk 0:00:09]} 63. Kb5 {[%clk 0:00:03]}  Qd5+ {[%clk 0:00:08]} 64. Ka4 {[%clk 0:00:04]}  Qa2+ {[%clk 0:00:04]} 65. Kb5 {[%clk 0:00:04]}  Qb3+ {[%clk 0:00:04]} 66. Ka6 {[%clk 0:00:02]}  Qa4+ {[%clk 0:00:04]} 67. Kb6 {[%clk 0:00:02]}  Be3+ {[%clk 0:00:02]} 68. Kc7 {[%clk 0:00:03]}  Qa5+ {[%clk 0:00:02]} 69. Kd7 {[%clk 0:00:03]}  Qa4+ {[%clk 0:00:02]} 70. Kc7 {[%clk 0:00:03]}  Qa5+ {[%clk 0:00:02]} 71. Kd7 {[%clk 0:00:03]}  Qa4+ {[%clk 0:00:03]} 72. Kc7 {[%clk 0:00:04]} 1/2-1/2


[Site "https://www.chess.com"]

[Event "Titled Tuesday Blitz January 03 Late 2023"]
[White "Saric, Ibro"]
[Black "Jobava, Baadur"]
[WhiteFideId "14401290"]
[BlackFideId "13601520"]
[WhiteElo "2531"]
[BlackElo "2578"]
[Result "0-1"]
[Round "08"]
[TimeControl "180+2"]
[Date "2023.01.03"]
[WhiteClock "0:00:01"]
[BlackClock "0:02:35"]

1. d4 {[%clk 0:03:00]}  Nf6 {[%clk 0:02:59]} 2. c4 {[%clk 0:03:00]}  c5 {[%clk 0:02:59]} 3. d5 {[%clk 0:02:59]}  d6 {[%clk 0:02:59]} 4. Nc3 {[%clk 0:02:59]}  g6 {[%clk 0:03:00]} 5. e4 {[%clk 0:02:58]}  Bg7 {[%clk 0:03:01]} 6. Bd3 {[%clk 0:02:58]}  O-O {[%clk 0:03:02]} 7. Nf3 {[%clk 0:02:58]}  e6 {[%clk 0:03:03]} 8. O-O {[%clk 0:02:56]}  exd5 {[%clk 0:03:03]} 9. exd5 {[%clk 0:02:56]}  Bg4 {[%clk 0:03:03]} 10. h3 {[%clk 0:02:56]}  Bxf3 {[%clk 0:03:03]} 11. Qxf3 {[%clk 0:02:57]}  Nfd7 {[%clk 0:03:04]} 12. Qd1 {[%clk 0:02:56]}  Ne5 {[%clk 0:03:03]} 13. Be2 {[%clk 0:02:56]}  f5 {[%clk 0:03:04]} 14. f4 {[%clk 0:02:54]}  Nf7 {[%clk 0:03:04]} 15. Qc2 {[%clk 0:02:50]}  Nd7 {[%clk 0:03:04]} 16. Bd2 {[%clk 0:02:48]}  h5 {[%clk 0:02:58]} 17. Rae1 {[%clk 0:02:41]}  Qh4 {[%clk 0:02:58]} 18. Kh2 {[%clk 0:02:35]}  Rae8 {[%clk 0:02:57]} 19. g3 {[%clk 0:02:34]}  Qd8 {[%clk 0:02:57]} 20. Bf3 {[%clk 0:02:27]}  a6 {[%clk 0:02:54]} 21. Re6 {[%clk 0:02:19]}  Nf6 {[%clk 0:02:52]} 22. Rfe1 {[%clk 0:02:17]}  Qd7 {[%clk 0:02:51]} 23. b3 {[%clk 0:01:50]}  Nd8 {[%clk 0:02:48]} 24. Rxe8 {[%clk 0:01:41]}  Rxe8 {[%clk 0:02:49]} 25. Rxe8+ {[%clk 0:01:40]}  Nxe8 {[%clk 0:02:50]} 26. a4 {[%clk 0:01:29]}  Nf7 {[%clk 0:02:50]} 27. Qd3 {[%clk 0:01:28]}  Nc7 {[%clk 0:02:50]} 28. Nd1 {[%clk 0:01:25]}  b5 {[%clk 0:02:49]} 29. axb5 {[%clk 0:01:14]}  axb5 {[%clk 0:02:50]} 30. Nc3 {[%clk 0:01:12]}  bxc4 {[%clk 0:02:48]} 31. bxc4 {[%clk 0:01:11]}  Na8 {[%clk 0:02:46]} 32. Nb5 {[%clk 0:01:11]}  Nb6 {[%clk 0:02:46]} 33. Ba5 {[%clk 0:01:01]}  Na4 {[%clk 0:02:46]} 34. Qb3 {[%clk 0:00:57]}  Nb2 {[%clk 0:02:46]} 35. Bd2 {[%clk 0:00:30]}  Qe7 {[%clk 0:02:42]} 36. Kg2 {[%clk 0:00:27]}  h4 {[%clk 0:02:41]} 37. g4 {[%clk 0:00:11]}  fxg4 {[%clk 0:02:41]} 38. hxg4 {[%clk 0:00:11]}  g5 {[%clk 0:02:41]} 39. Qc2 {[%clk 0:00:07]}  gxf4 {[%clk 0:02:40]} 40. Bxf4 {[%clk 0:00:08]}  Ng5 {[%clk 0:02:36]} 41. Qf5 {[%clk 0:00:05]}  h3+ {[%clk 0:02:36]} 42. Kg3 {[%clk 0:00:04]}  Be5 {[%clk 0:02:36]} 43. Qg6+ {[%clk 0:00:03]}  Kf8 {[%clk 0:02:35]} 44. Qh6+ {[%clk 0:00:01]}  Ke8 {[%clk 0:02:35]} 45. Qh5+ {[%clk 0:00:01]}  Kd7 {[%clk 0:02:35]} 0-1


[Site "https://www.chess.com"]

[Event "Titled Tuesday Blitz January 03 Late 2023"]
[White "Tari, Aryan"]
[Black "Rozman, Levy"]
[WhiteFideId "1510045"]
[BlackFideId "2039877"]
[WhiteElo "2642"]
[BlackElo "2322"]
[Result "1-0"]
[Round "08"]
[TimeControl "180+2"]
[Date "2023.01.03"]
[WhiteClock "0:00:10"]
[BlackClock "0:00:02"]

1. Nf3 {[%clk 0:02:40]}  g6 {[%clk 0:02:58]} 2. e4 {[%clk 0:02:37]}  Bg7 {[%clk 0:02:58]} 3. d4 {[%clk 0:02:37]}  d6 {[%clk 0:02:58]} 4. Bd3 {[%clk 0:02:34]}  Nc6 {[%clk 0:02:57]} 5. d5 {[%clk 0:02:34]}  Nb8 {[%clk 0:02:57]} 6. O-O {[%clk 0:02:33]}  Nf6 {[%clk 0:02:56]} 7. h3 {[%clk 0:02:33]}  O-O {[%clk 0:02:56]} 8. c4 {[%clk 0:02:20]}  e5 {[%clk 0:02:52]} 9. dxe6 {[%clk 0:02:18]}  Bxe6 {[%clk 0:02:52]} 10. Nc3 {[%clk 0:02:18]}  Nc6 {[%clk 0:02:46]} 11. Bf4 {[%clk 0:02:18]}  Nh5 {[%clk 0:02:39]} 12. Bh2 {[%clk 0:02:18]}  Ne5 {[%clk 0:02:39]} 13. Qe2 {[%clk 0:01:50]}  c6 {[%clk 0:02:24]} 14. g4 {[%clk 0:01:44]}  Bxg4 {[%clk 0:02:01]} 15. hxg4 {[%clk 0:01:42]}  Nxg4 {[%clk 0:02:02]} 16. Kh1 {[%clk 0:01:36]}  Nxh2 {[%clk 0:01:35]} 17. Nxh2 {[%clk 0:01:18]}  Be5 {[%clk 0:01:32]} 18. Qg4 {[%clk 0:01:09]}  Nf4 {[%clk 0:01:19]} 19. Rad1 {[%clk 0:01:09]}  h5 {[%clk 0:01:19]} 20. Qf3 {[%clk 0:01:00]}  Qh4 {[%clk 0:01:15]} 21. Qg3 {[%clk 0:01:00]}  Qf6 {[%clk 0:01:08]} 22. Qf3 {[%clk 0:01:00]}  Qh4 {[%clk 0:01:08]} 23. Qg3 {[%clk 0:00:50]}  Qf6 {[%clk 0:01:05]} 24. Rg1 {[%clk 0:00:44]}  Ne2 {[%clk 0:00:42]} 25. Qf3 {[%clk 0:00:33]}  Qh4 {[%clk 0:00:32]} 26. Rg2 {[%clk 0:00:32]}  Nf4 {[%clk 0:00:32]} 27. Rg3 {[%clk 0:00:26]}  Ne6 {[%clk 0:00:16]} 28. Rh3 {[%clk 0:00:25]}  Qe7 {[%clk 0:00:13]} 29. Rg1 {[%clk 0:00:16]}  Ng5 {[%clk 0:00:11]} 30. Qg2 {[%clk 0:00:15]}  Nxh3 {[%clk 0:00:10]} 31. Qxh3 {[%clk 0:00:16]}  Qf6 {[%clk 0:00:07]} 32. Nf3 {[%clk 0:00:15]}  Bxc3 {[%clk 0:00:07]} 33. bxc3 {[%clk 0:00:16]}  Rae8 {[%clk 0:00:04]} 34. e5 {[%clk 0:00:16]}  dxe5 {[%clk 0:00:03]} 35. Be4 {[%clk 0:00:15]}  Kg7 {[%clk 0:00:03]} 36. Nh4 {[%clk 0:00:13]}  Qxf2 {[%clk 0:00:03]} 37. Nxg6 {[%clk 0:00:12]}  fxg6 {[%clk 0:00:02]} 38. Rxg6+ {[%clk 0:00:13]}  Kf7 {[%clk 0:00:02]} 39. Qxh5 {[%clk 0:00:12]}  Rh8 {[%clk 0:00:02]} 40. Rh6+ {[%clk 0:00:13]}  Ke7 {[%clk 0:00:02]} 41. Qxe5+ {[%clk 0:00:11]}  Kd8 {[%clk 0:00:02]} 42. Qb8+ {[%clk 0:00:10]}  Ke7 {[%clk 0:00:02]} 43. Qc7+ {[%clk 0:00:10]} 1-0


[Site "https://www.chess.com"]

[Event "Titled Tuesday Blitz January 03 Late 2023"]
[White "Shimanov, Aleksandr"]
[Black "Goryachkina, Aleksandra"]
[WhiteFideId "4198603"]
[BlackFideId "4147103"]
[WhiteElo "2581"]
[BlackElo "2571"]
[Result "1-0"]
[Round "08"]
[TimeControl "180+2"]
[Date "2023.01.03"]
[WhiteClock "0:00:46"]
[BlackClock "0:00:04"]

1. e4 {[%clk 0:03:00]}  c5 {[%clk 0:02:59]} 2. Nf3 {[%clk 0:03:00]}  e6 {[%clk 0:02:59]} 3. c3 {[%clk 0:03:00]}  Nf6 {[%clk 0:02:58]} 4. Bd3 {[%clk 0:02:58]}  d5 {[%clk 0:02:48]} 5. e5 {[%clk 0:02:58]}  Nfd7 {[%clk 0:02:48]} 6. Bc2 {[%clk 0:02:58]}  Nc6 {[%clk 0:02:47]} 7. d4 {[%clk 0:02:58]}  b6 {[%clk 0:02:28]} 8. O-O {[%clk 0:02:57]}  Ba6 {[%clk 0:02:27]} 9. Re1 {[%clk 0:02:57]}  Be7 {[%clk 0:02:24]} 10. a3 {[%clk 0:02:53]}  Rc8 {[%clk 0:02:22]} 11. Be3 {[%clk 0:02:51]}  O-O {[%clk 0:02:05]} 12. Nbd2 {[%clk 0:02:47]}  cxd4 {[%clk 0:01:58]} 13. cxd4 {[%clk 0:02:47]}  Na5 {[%clk 0:01:57]} 14. Qb1 {[%clk 0:02:33]}  g6 {[%clk 0:01:51]} 15. b3 {[%clk 0:02:29]}  Rc7 {[%clk 0:01:45]} 16. Nf1 {[%clk 0:02:26]}  Qc8 {[%clk 0:01:33]} 17. Ra2 {[%clk 0:02:20]}  Bxf1 {[%clk 0:01:15]} 18. Rxf1 {[%clk 0:02:18]}  b5 {[%clk 0:01:10]} 19. Bd2 {[%clk 0:02:12]}  Nc6 {[%clk 0:01:09]} 20. Bd3 {[%clk 0:02:10]}  b4 {[%clk 0:01:08]} 21. a4 {[%clk 0:02:09]}  Qb7 {[%clk 0:00:56]} 22. h4 {[%clk 0:02:08]}  Rfc8 {[%clk 0:00:50]} 23. h5 {[%clk 0:02:08]}  Nf8 {[%clk 0:00:50]} 24. a5 {[%clk 0:02:02]}  a6 {[%clk 0:00:48]} 25. g3 {[%clk 0:01:59]}  Na7 {[%clk 0:00:39]} 26. Kg2 {[%clk 0:01:58]}  Nb5 {[%clk 0:00:39]} 27. Qe1 {[%clk 0:01:50]}  Nc3 {[%clk 0:00:29]} 28. Ra1 {[%clk 0:01:50]}  Ne4 {[%clk 0:00:28]} 29. Rh1 {[%clk 0:01:50]}  Nxd2 {[%clk 0:00:24]} 30. Qxd2 {[%clk 0:01:49]}  Rc3 {[%clk 0:00:24]} 31. Rab1 {[%clk 0:01:44]}  R8c6 {[%clk 0:00:19]} 32. Nh2 {[%clk 0:01:09]}  Qc7 {[%clk 0:00:12]} 33. Ng4 {[%clk 0:01:08]}  Qd8 {[%clk 0:00:08]} 34. hxg6 {[%clk 0:00:51]}  fxg6 {[%clk 0:00:07]} 35. Qf4 {[%clk 0:00:48]}  Rxd3 {[%clk 0:00:04]} 36. Nh6+ {[%clk 0:00:47]}  Kg7 {[%clk 0:00:04]} 37. Qf7+ {[%clk 0:00:46]} 1-0


[Site "https://www.chess.com"]